[Event "Titled Tuesday Blitz November 22 Early 2022"]
[White "Valle Maytin, Luis Enrique"]
[Black "Lauridsen, Jesper Morch"]
[WhiteFideId "3503666"]
[BlackFideId "1401890"]
[WhiteElo "2225"]
[BlackElo "2244"]
[Result "1-0"]
[Round "06"]
[TimeControl "180+1"]
[Date "2022.11.23"]
[WhiteClock "0:00:11"]
[BlackClock "0:00:06"]

1. e4 {[%clk 0:03:00]}  e5 {[%clk 0:02:59]} 2. Nf3 {[%clk 0:02:57]}  Nf6 {[%clk 0:02:59]} 3. Nxe5 {[%clk 0:02:55]}  d6 {[%clk 0:02:59]} 4. Nd3 {[%clk 0:02:51]}  Nxe4 {[%clk 0:03:00]} 5. Qe2 {[%clk 0:02:50]}  Qe7 {[%clk 0:02:57]} 6. Nf4 {[%clk 0:02:50]}  c6 {[%clk 0:02:34]} 7. d4 {[%clk 0:02:45]}  d5 {[%clk 0:02:28]} 8. h4 {[%clk 0:02:44]}  Nd6 {[%clk 0:02:25]} 9. Be3 {[%clk 0:02:38]}  Nf5 {[%clk 0:02:20]} 10. Nd2 {[%clk 0:02:30]}  Na6 {[%clk 0:02:01]} 11. O-O-O {[%clk 0:02:26]}  Nxe3 {[%clk 0:01:57]} 12. Qxe3 {[%clk 0:02:25]}  Qxe3 {[%clk 0:01:56]} 13. fxe3 {[%clk 0:02:25]}  Bd6 {[%clk 0:01:49]} 14. Bd3 {[%clk 0:01:44]}  Bg4 {[%clk 0:01:43]} 15. Rde1 {[%clk 0:01:41]}  O-O-O {[%clk 0:01:27]} 16. c3 {[%clk 0:01:40]}  Nc7 {[%clk 0:01:22]} 17. Nb3 {[%clk 0:01:36]}  Rde8 {[%clk 0:01:19]} 18. Kd2 {[%clk 0:01:35]}  Re7 {[%clk 0:01:17]} 19. Nc1 {[%clk 0:01:34]}  h6 {[%clk 0:01:14]} 20. Be2 {[%clk 0:01:20]}  Bf5 {[%clk 0:01:03]} 21. Bd3 {[%clk 0:01:08]}  Bg4 {[%clk 0:01:01]} 22. Rhf1 {[%clk 0:01:02]}  Rhe8 {[%clk 0:01:00]} 23. a4 {[%clk 0:00:56]}  a5 {[%clk 0:00:58]} 24. Bc2 {[%clk 0:00:55]}  g6 {[%clk 0:00:50]} 25. Ncd3 {[%clk 0:00:54]}  Bf5 {[%clk 0:00:50]} 26. g3 {[%clk 0:00:38]}  Be4 {[%clk 0:00:40]} 27. Re2 {[%clk 0:00:33]}  f6 {[%clk 0:00:34]} 28. Ne1 {[%clk 0:00:33]}  Bxc2 {[%clk 0:00:29]} 29. Nxc2 {[%clk 0:00:32]}  Bxf4 {[%clk 0:00:20]} 30. Rxf4 {[%clk 0:00:30]}  f5 {[%clk 0:00:20]} 31. Ne1 {[%clk 0:00:24]}  Ne6 {[%clk 0:00:20]} 32. Rff2 {[%clk 0:00:23]}  Ng7 {[%clk 0:00:20]} 33. Nd3 {[%clk 0:00:23]}  Nh5 {[%clk 0:00:19]} 34. Rg2 {[%clk 0:00:19]}  Nf6 {[%clk 0:00:19]} 35. Ne5 {[%clk 0:00:16]}  Ne4+ {[%clk 0:00:17]} 36. Kd3 {[%clk 0:00:15]}  Re6 {[%clk 0:00:16]} 37. g4 {[%clk 0:00:16]}  fxg4 {[%clk 0:00:14]} 38. Rxg4 {[%clk 0:00:16]}  g5 {[%clk 0:00:14]} 39. hxg5 {[%clk 0:00:15]}  hxg5 {[%clk 0:00:14]} 40. Nf7 {[%clk 0:00:15]}  Kc7 {[%clk 0:00:14]} 41. Nxg5 {[%clk 0:00:14]}  Rg6 {[%clk 0:00:11]} 42. Nxe4 {[%clk 0:00:12]}  dxe4+ {[%clk 0:00:10]} 43. Rxe4 {[%clk 0:00:12]}  Rxe4 {[%clk 0:00:10]} 44. Kxe4 {[%clk 0:00:13]}  b6 {[%clk 0:00:11]} 45. Kd3 {[%clk 0:00:14]}  b5 {[%clk 0:00:11]} 46. b3 {[%clk 0:00:12]}  b4 {[%clk 0:00:10]} 47. cxb4 {[%clk 0:00:12]}  axb4 {[%clk 0:00:10]} 48. Kc4 {[%clk 0:00:13]}  Rg1 {[%clk 0:00:10]} 49. Kxb4 {[%clk 0:00:14]}  Rc1 {[%clk 0:00:10]} 50. e4 {[%clk 0:00:14]}  Kb6 {[%clk 0:00:10]} 51. Rd2 {[%clk 0:00:12]}  Ka6 {[%clk 0:00:09]} 52. d5 {[%clk 0:00:12]}  c5+ {[%clk 0:00:09]} 53. Ka3 {[%clk 0:00:12]}  c4 {[%clk 0:00:09]} 54. bxc4 {[%clk 0:00:10]}  Rxc4 {[%clk 0:00:09]} 55. e5 {[%clk 0:00:11]}  Rc3+ {[%clk 0:00:09]} 56. Kb4 {[%clk 0:00:11]}  Rf3 {[%clk 0:00:09]} 57. e6 {[%clk 0:00:11]}  Rf4+ {[%clk 0:00:09]} 58. Kc5 {[%clk 0:00:12]}  Rxa4 {[%clk 0:00:09]} 59. e7 {[%clk 0:00:11]}  Re4 {[%clk 0:00:09]} 60. d6 {[%clk 0:00:12]}  Kb7 {[%clk 0:00:08]} 61. Rb2+ {[%clk 0:00:11]}  Kc8 {[%clk 0:00:08]} 62. Kc6 {[%clk 0:00:12]}  Rxe7 {[%clk 0:00:06]} 63. Rb8+ {[%clk 0:00:10]}  Kxb8 {[%clk 0:00:06]} 64. dxe7 {[%clk 0:00:11]}  Ka7 {[%clk 0:00:06]} 65. e8=Q {[%clk 0:00:11]}  Ka6 {[%clk 0:00:06]} 66. Qa8# {[%clk 0:00:11]} 1-0


[Site "https://www.chess.com"]

[Event "Titled Tuesday Blitz November 22 Early 2022"]
[White "Vifleemskaia, Svetlana"]
[Black "Kriti Mayur Patel"]
[WhiteFideId "4129490"]
[BlackFideId "35061780"]
[WhiteElo "1929"]
[BlackElo "1306"]
[Result "1-0"]
[Round "06"]
[TimeControl "180+1"]
[Date "2022.11.23"]
[WhiteClock "0:00:08"]
[BlackClock "0:00:15"]

1. d4 {[%clk 0:02:38]}  d5 {[%clk 0:02:56]} 2. c4 {[%clk 0:02:31]}  e6 {[%clk 0:02:56]} 3. Nc3 {[%clk 0:02:31]}  Nf6 {[%clk 0:02:56]} 4. cxd5 {[%clk 0:02:30]}  exd5 {[%clk 0:02:56]} 5. Bg5 {[%clk 0:02:29]}  Be7 {[%clk 0:02:57]} 6. e3 {[%clk 0:02:29]}  O-O {[%clk 0:02:57]} 7. Bd3 {[%clk 0:02:28]}  c6 {[%clk 0:02:57]} 8. Nge2 {[%clk 0:02:28]}  Re8 {[%clk 0:02:57]} 9. O-O {[%clk 0:02:27]}  Nbd7 {[%clk 0:02:58]} 10. f3 {[%clk 0:02:22]}  Nf8 {[%clk 0:02:59]} 11. Bh4 {[%clk 0:02:21]}  Ng6 {[%clk 0:02:55]} 12. Bf2 {[%clk 0:02:21]}  Be6 {[%clk 0:02:53]} 13. Kh1 {[%clk 0:02:17]}  Bd6 {[%clk 0:02:53]} 14. Bg1 {[%clk 0:02:13]}  Bc7 {[%clk 0:02:51]} 15. e4 {[%clk 0:02:12]}  dxe4 {[%clk 0:02:49]} 16. fxe4 {[%clk 0:02:13]}  Ng4 {[%clk 0:02:47]} 17. e5 {[%clk 0:02:04]}  Qh4 {[%clk 0:02:44]} 18. Qe1 {[%clk 0:01:31]}  Qh6 {[%clk 0:02:28]} 19. Qg3 {[%clk 0:01:24]}  Rad8 {[%clk 0:02:20]} 20. Nf4 {[%clk 0:01:17]}  N6xe5 {[%clk 0:01:59]} 21. dxe5 {[%clk 0:01:07]}  Bxe5 {[%clk 0:01:58]} 22. Be2 {[%clk 0:00:51]}  Nf6 {[%clk 0:01:21]} 23. Be3 {[%clk 0:00:44]}  g5 {[%clk 0:01:01]} 24. h4 {[%clk 0:00:32]}  Kh8 {[%clk 0:00:54]} 25. Qxg5 {[%clk 0:00:31]}  Qxg5 {[%clk 0:00:45]} 26. hxg5 {[%clk 0:00:32]}  Ng4 {[%clk 0:00:46]} 27. Nxe6 {[%clk 0:00:26]}  Rxe6 {[%clk 0:00:44]} 28. Bxg4 {[%clk 0:00:25]}  Rg6 {[%clk 0:00:44]} 29. Rxf7 {[%clk 0:00:19]}  Rdg8 {[%clk 0:00:41]} 30. Bf5 {[%clk 0:00:17]}  R6g7 {[%clk 0:00:37]} 31. Rxg7 {[%clk 0:00:16]}  Rxg7 {[%clk 0:00:38]} 32. g4 {[%clk 0:00:16]}  Re7 {[%clk 0:00:37]} 33. Ne4 {[%clk 0:00:16]}  Bxb2 {[%clk 0:00:37]} 34. Rb1 {[%clk 0:00:15]}  Be5 {[%clk 0:00:35]} 35. Kg2 {[%clk 0:00:14]}  Kg7 {[%clk 0:00:35]} 36. Kf3 {[%clk 0:00:14]}  Bb8 {[%clk 0:00:32]} 37. Bd4+ {[%clk 0:00:13]}  Kf7 {[%clk 0:00:31]} 38. Rh1 {[%clk 0:00:13]}  Kg8 {[%clk 0:00:31]} 39. g6 {[%clk 0:00:13]}  hxg6 {[%clk 0:00:30]} 40. Bxg6 {[%clk 0:00:13]}  Be5 {[%clk 0:00:28]} 41. Bxe5 {[%clk 0:00:12]}  Rxe5 {[%clk 0:00:29]} 42. Kf4 {[%clk 0:00:13]}  Ra5 {[%clk 0:00:28]} 43. Rh2 {[%clk 0:00:11]}  Ra3 {[%clk 0:00:26]} 44. Bf5 {[%clk 0:00:09]}  Kg7 {[%clk 0:00:25]} 45. g5 {[%clk 0:00:10]}  Rd3 {[%clk 0:00:23]} 46. Rh7+ {[%clk 0:00:09]}  Kf8 {[%clk 0:00:22]} 47. Rxb7 {[%clk 0:00:10]}  Rd1 {[%clk 0:00:22]} 48. g6 {[%clk 0:00:09]}  Rf1+ {[%clk 0:00:23]} 49. Ke5 {[%clk 0:00:09]}  c5 {[%clk 0:00:22]} 50. Kf6 {[%clk 0:00:09]}  a5 {[%clk 0:00:15]} 51. Rb8# {[%clk 0:00:08]} 1-0


[Site "https://www.chess.com"]

[Event "Titled Tuesday Blitz November 22 Early 2022"]
[White "Winterberg, Lukas"]
[Black "Tanenbaum, Zachary"]
[WhiteFideId "24622702"]
[BlackFideId "2060850"]
[WhiteElo "2349"]
[BlackElo "2175"]
[Result "0-1"]
[Round "06"]
[TimeControl "180+1"]
[Date "2022.11.23"]
[WhiteClock "0:00:14"]
[BlackClock "0:00:11"]

1. Nf3 {[%clk 0:02:59]}  d5 {[%clk 0:03:00]} 2. b3 {[%clk 0:02:59]}  c5 {[%clk 0:02:59]} 3. Bb2 {[%clk 0:03:00]}  f6 {[%clk 0:03:00]} 4. g3 {[%clk 0:03:00]}  e5 {[%clk 0:03:00]} 5. Bg2 {[%clk 0:03:01]}  e4 {[%clk 0:03:00]} 6. Ng1 {[%clk 0:03:01]}  Nc6 {[%clk 0:02:55]} 7. d3 {[%clk 0:03:02]}  f5 {[%clk 0:02:55]} 8. c4 {[%clk 0:02:57]}  d4 {[%clk 0:02:41]} 9. dxe4 {[%clk 0:02:56]}  Nf6 {[%clk 0:02:41]} 10. exf5 {[%clk 0:02:49]}  Bxf5 {[%clk 0:02:42]} 11. Nf3 {[%clk 0:02:50]}  Nb4 {[%clk 0:02:35]} 12. O-O {[%clk 0:02:46]}  Nc2 {[%clk 0:02:15]} 13. Nh4 {[%clk 0:02:46]}  Qd7 {[%clk 0:02:14]} 14. Nxf5 {[%clk 0:02:41]}  Qxf5 {[%clk 0:02:14]} 15. e4 {[%clk 0:02:17]}  dxe3 {[%clk 0:02:11]} 16. fxe3 {[%clk 0:02:16]}  Qg6 {[%clk 0:01:55]} 17. Bxb7 {[%clk 0:02:12]}  Rd8 {[%clk 0:01:47]} 18. Bc6+ {[%clk 0:02:12]}  Ke7 {[%clk 0:01:47]} 19. Qf3 {[%clk 0:01:59]}  Nxa1 {[%clk 0:01:44]} 20. Bxa1 {[%clk 0:01:57]}  h5 {[%clk 0:01:21]} 21. Nc3 {[%clk 0:01:53]}  h4 {[%clk 0:01:20]} 22. Ne4 {[%clk 0:01:34]}  hxg3 {[%clk 0:01:12]} 23. Nxf6 {[%clk 0:01:24]}  Rxh2 {[%clk 0:00:32]} 24. Ng4 {[%clk 0:01:07]}  g2 {[%clk 0:00:27]} 25. Nxh2 {[%clk 0:00:33]}  gxf1=Q+ {[%clk 0:00:27]} 26. Kxf1 {[%clk 0:00:34]}  Qb1+ {[%clk 0:00:26]} 27. Kg2 {[%clk 0:00:32]}  Rd2+ {[%clk 0:00:19]} 28. Kh3 {[%clk 0:00:13]}  Qh7+ {[%clk 0:00:16]} 29. Kg4 {[%clk 0:00:13]}  Qg6+ {[%clk 0:00:14]} 30. Kf4 {[%clk 0:00:12]}  Rxh2 {[%clk 0:00:11]} 31. Qe4+ {[%clk 0:00:05]}  Qxe4+ {[%clk 0:00:12]} 32. Kxe4 {[%clk 0:00:05]}  Rxa2 {[%clk 0:00:12]} 33. Be5 {[%clk 0:00:05]}  Ra3 {[%clk 0:00:09]} 34. Ba4 {[%clk 0:00:06]}  Ke6 {[%clk 0:00:09]} 35. Bf4 {[%clk 0:00:05]}  Bd6 {[%clk 0:00:08]} 36. Bg5 {[%clk 0:00:05]}  Ra1 {[%clk 0:00:07]} 37. Bd8 {[%clk 0:00:05]}  Rg1 {[%clk 0:00:05]} 38. Ba5 {[%clk 0:00:05]}  g5 {[%clk 0:00:05]} 39. Kf3 {[%clk 0:00:06]}  g4+ {[%clk 0:00:05]} 40. Kf2 {[%clk 0:00:07]}  Rb1 {[%clk 0:00:05]} 41. Bd8 {[%clk 0:00:06]}  Rb2+ {[%clk 0:00:04]} 42. Kf1 {[%clk 0:00:07]}  g3 {[%clk 0:00:05]} 43. Bh4 {[%clk 0:00:07]}  g2+ {[%clk 0:00:05]} 44. Kg1 {[%clk 0:00:08]}  Kf5 {[%clk 0:00:04]} 45. Bf2 {[%clk 0:00:08]}  Kg4 {[%clk 0:00:04]} 46. Kxg2 {[%clk 0:00:09]}  Bg3 {[%clk 0:00:04]} 47. Bd7+ {[%clk 0:00:08]}  Kh4 {[%clk 0:00:04]} 48. Kf3 {[%clk 0:00:08]}  Rxf2+ {[%clk 0:00:04]} 49. Ke4 {[%clk 0:00:09]}  Rb2 {[%clk 0:00:04]} 50. Ba4 {[%clk 0:00:10]}  Bf2 {[%clk 0:00:04]} 51. Kf3 {[%clk 0:00:10]}  Bg1 {[%clk 0:00:04]} 52. e4 {[%clk 0:00:10]}  Kg5 {[%clk 0:00:04]} 53. Kg3 {[%clk 0:00:08]}  Kf6 {[%clk 0:00:04]} 54. Kf4 {[%clk 0:00:08]}  Bh2+ {[%clk 0:00:04]} 55. Kg4 {[%clk 0:00:08]}  Ke5 {[%clk 0:00:05]} 56. Kh3 {[%clk 0:00:08]}  Bg1 {[%clk 0:00:05]} 57. Kg4 {[%clk 0:00:09]}  Be3 {[%clk 0:00:05]} 58. Kh5 {[%clk 0:00:09]}  Bd4 {[%clk 0:00:06]} 59. Kg6 {[%clk 0:00:10]}  Kxe4 {[%clk 0:00:06]} 60. Kf7 {[%clk 0:00:11]}  Kd3 {[%clk 0:00:07]} 61. Ke7 {[%clk 0:00:12]}  Kc3 {[%clk 0:00:08]} 62. Kd6 {[%clk 0:00:12]}  Rxb3 {[%clk 0:00:08]} 63. Bb5 {[%clk 0:00:13]}  Rb4 {[%clk 0:00:08]} 64. Kc6 {[%clk 0:00:13]}  a5 {[%clk 0:00:09]} 65. Kb6 {[%clk 0:00:12]}  a4 {[%clk 0:00:10]} 66. Ka5 {[%clk 0:00:13]}  a3 {[%clk 0:00:10]} 67. Bd7 {[%clk 0:00:13]}  a2 {[%clk 0:00:11]} 68. Bf5 {[%clk 0:00:14]}  a1=Q# {[%clk 0:00:11]} 0-1


[Site "https://www.chess.com"]

[Event "Titled Tuesday Blitz November 22 Early 2022"]
[White "Xu, Yi"]
[Black "Xiong, Jeffery"]
[WhiteFideId "8605564"]
[BlackFideId "2047640"]
[WhiteElo "2471"]
[BlackElo "2725"]
[Result "0-1"]
[Round "06"]
[TimeControl "180+1"]
[Date "2022.11.22"]
[WhiteClock "0:00:15"]
[BlackClock "0:01:22"]

1. e4 {[%clk 0:03:00]}  c6 {[%clk 0:02:57]} 2. d4 {[%clk 0:03:00]}  d5 {[%clk 0:02:57]} 3. e5 {[%clk 0:03:01]}  Bf5 {[%clk 0:02:57]} 4. h4 {[%clk 0:03:01]}  h5 {[%clk 0:02:57]} 5. Bd3 {[%clk 0:03:02]}  Bxd3 {[%clk 0:02:58]} 6. Qxd3 {[%clk 0:03:03]}  Qa5+ {[%clk 0:02:58]} 7. Nd2 {[%clk 0:03:00]}  e6 {[%clk 0:02:58]} 8. Ne2 {[%clk 0:02:55]}  Ne7 {[%clk 0:02:50]} 9. O-O {[%clk 0:02:41]}  Nf5 {[%clk 0:02:46]} 10. Nf3 {[%clk 0:02:21]}  Qa6 {[%clk 0:02:42]} 11. Qd1 {[%clk 0:02:14]}  c5 {[%clk 0:02:41]} 12. Bg5 {[%clk 0:02:09]}  cxd4 {[%clk 0:02:29]} 13. Nexd4 {[%clk 0:02:06]}  Nxd4 {[%clk 0:02:30]} 14. Nxd4 {[%clk 0:02:02]}  Nc6 {[%clk 0:02:30]} 15. Nxc6 {[%clk 0:01:51]}  bxc6 {[%clk 0:02:31]} 16. f4 {[%clk 0:01:27]}  Rb8 {[%clk 0:02:20]} 17. f5 {[%clk 0:01:24]}  Bc5+ {[%clk 0:02:16]} 18. Kh1 {[%clk 0:01:22]}  exf5 {[%clk 0:01:49]} 19. Rxf5 {[%clk 0:01:20]}  Rxb2 {[%clk 0:01:48]} 20. Qf3 {[%clk 0:00:59]}  Qb7 {[%clk 0:01:46]} 21. Rf1 {[%clk 0:00:53]}  Rb1 {[%clk 0:01:44]} 22. Kh2 {[%clk 0:00:33]}  Rxf1 {[%clk 0:01:43]} 23. Qxf1 {[%clk 0:00:34]}  O-O {[%clk 0:01:42]} 24. Qf3 {[%clk 0:00:33]}  Qb1 {[%clk 0:01:35]} 25. Bf6 {[%clk 0:00:26]}  Qg1+ {[%clk 0:01:32]} 26. Kg3 {[%clk 0:00:27]}  gxf6 {[%clk 0:01:27]} 27. Rxh5 {[%clk 0:00:15]}  Qe3 {[%clk 0:01:22]} 0-1


[Site "https://www.chess.com"]

[Event "Titled Tuesday Blitz November 22 Early 2022"]
[White "Yuan, Qingyu"]
[Black "Winkels, Marcel"]
[WhiteFideId "8609772"]
[BlackFideId "1003887"]
[WhiteElo "2359"]
[BlackElo "1900"]
[Result "1-0"]
[Round "06"]
[TimeControl "180+1"]
[Date "2022.11.23"]
[WhiteClock "0:01:34"]
[BlackClock "0:00:53"]

1. e4 {[%clk 0:03:00]}  c5 {[%clk 0:02:59]} 2. Nf3 {[%clk 0:02:59]}  d6 {[%clk 0:03:00]} 3. d4 {[%clk 0:02:59]}  cxd4 {[%clk 0:03:00]} 4. Nxd4 {[%clk 0:03:00]}  Nf6 {[%clk 0:03:00]} 5. Nc3 {[%clk 0:03:00]}  a6 {[%clk 0:03:01]} 6. Rg1 {[%clk 0:03:00]}  h5 {[%clk 0:02:59]} 7. Bg5 {[%clk 0:03:00]}  e6 {[%clk 0:02:51]} 8. Qd2 {[%clk 0:02:55]}  Be7 {[%clk 0:02:50]} 9. f4 {[%clk 0:02:54]}  Nbd7 {[%clk 0:02:44]} 10. Be2 {[%clk 0:02:51]}  Qc7 {[%clk 0:02:43]} 11. O-O-O {[%clk 0:02:49]}  b5 {[%clk 0:02:41]} 12. a3 {[%clk 0:02:45]}  Bb7 {[%clk 0:02:40]} 13. Bf3 {[%clk 0:02:43]}  O-O-O {[%clk 0:02:27]} 14. Kb1 {[%clk 0:02:37]}  Kb8 {[%clk 0:02:25]} 15. g3 {[%clk 0:02:28]}  Ka8 {[%clk 0:02:11]} 16. Rge1 {[%clk 0:02:27]}  g6 {[%clk 0:02:05]} 17. Re3 {[%clk 0:02:27]}  e5 {[%clk 0:02:04]} 18. Nb3 {[%clk 0:02:23]}  Nb6 {[%clk 0:02:01]} 19. Na5 {[%clk 0:02:20]}  Nc4 {[%clk 0:01:49]} 20. Nxc4 {[%clk 0:02:18]}  bxc4 {[%clk 0:01:48]} 21. Bxf6 {[%clk 0:01:45]}  Bxf6 {[%clk 0:01:46]} 22. Nd5 {[%clk 0:01:44]}  Bxd5 {[%clk 0:01:43]} 23. Qxd5+ {[%clk 0:01:44]}  Ka7 {[%clk 0:01:41]} 24. Rc3 {[%clk 0:01:39]}  exf4 {[%clk 0:01:20]} 25. Rxc4 {[%clk 0:01:37]}  Qb7 {[%clk 0:01:12]} 26. Qxb7+ {[%clk 0:01:34]}  Kxb7 {[%clk 0:01:11]} 27. e5+ {[%clk 0:01:35]}  d5 {[%clk 0:01:07]} 28. Rxd5 {[%clk 0:01:35]}  fxg3 {[%clk 0:00:53]} 29. Rxd8+ {[%clk 0:01:34]} 1-0


[Site "https://www.chess.com"]

[Event "Titled Tuesday Blitz November 22 Early 2022"]
[White "Zaichenko, Daria"]
[Black "Levine, David"]
[WhiteFideId "4197453"]
[BlackFideId "2011611"]
[WhiteElo "2039"]
[BlackElo "2183"]
[Result "0-1"]
[Round "06"]
[TimeControl "180+1"]
[Date "2022.11.23"]
[WhiteClock "0:01:24"]
[BlackClock "0:01:06"]

1. e4 {[%clk 0:03:00]}  e5 {[%clk 0:02:58]} 2. Nf3 {[%clk 0:03:00]}  Nc6 {[%clk 0:02:57]} 3. Bc4 {[%clk 0:03:00]}  Nf6 {[%clk 0:02:57]} 4. d3 {[%clk 0:02:59]}  h6 {[%clk 0:02:56]} 5. c3 {[%clk 0:03:00]}  d6 {[%clk 0:02:55]} 6. Bb3 {[%clk 0:02:59]}  g5 {[%clk 0:02:53]} 7. h3 {[%clk 0:02:57]}  Bg7 {[%clk 0:02:52]} 8. Nbd2 {[%clk 0:02:57]}  O-O {[%clk 0:02:51]} 9. Nf1 {[%clk 0:02:56]}  Ne7 {[%clk 0:02:41]} 10. Ng3 {[%clk 0:02:56]}  c6 {[%clk 0:02:39]} 11. h4 {[%clk 0:02:54]}  g4 {[%clk 0:02:38]} 12. Nd2 {[%clk 0:02:49]}  d5 {[%clk 0:02:37]} 13. Qe2 {[%clk 0:02:46]}  a5 {[%clk 0:02:34]} 14. a4 {[%clk 0:02:45]}  Be6 {[%clk 0:02:26]} 15. Ndf1 {[%clk 0:02:45]}  dxe4 {[%clk 0:02:21]} 16. Bc2 {[%clk 0:02:41]}  exd3 {[%clk 0:02:18]} 17. Bxd3 {[%clk 0:02:41]}  Ned5 {[%clk 0:02:10]} 18. Bd2 {[%clk 0:02:29]}  Nf4 {[%clk 0:02:04]} 19. Bxf4 {[%clk 0:02:28]}  exf4 {[%clk 0:02:04]} 20. Ne4 {[%clk 0:02:29]}  Nd5 {[%clk 0:01:54]} 21. O-O-O {[%clk 0:02:21]}  Qc7 {[%clk 0:01:43]} 22. Ng5 {[%clk 0:02:10]}  hxg5 {[%clk 0:01:37]} 23. hxg5 {[%clk 0:02:10]}  Rfe8 {[%clk 0:01:26]} 24. Qe4 {[%clk 0:02:03]}  Kf8 {[%clk 0:01:20]} 25. Qh7 {[%clk 0:01:51]}  Nxc3 {[%clk 0:01:10]} 26. bxc3 {[%clk 0:01:48]}  Qe5 {[%clk 0:01:10]} 27. Nd2 {[%clk 0:01:27]}  Qxc3+ {[%clk 0:01:06]} 28. Kb1 {[%clk 0:01:24]}  Qb2# {[%clk 0:01:06]} 0-1


[Site "https://www.chess.com"]

[Event "Titled Tuesday Blitz November 22 Early 2022"]
[White "Zainullina, Nataliya"]
[Black "Jiganchine, Roman"]
[WhiteFideId "4145488"]
[BlackFideId "2603667"]
[WhiteElo "2114"]
[BlackElo "2310"]
[Result "0-1"]
[Round "06"]
[TimeControl "180+1"]
[Date "2022.11.23"]
[WhiteClock "0:00:01"]
[BlackClock "0:00:05"]

1. Nf3 {[%clk 0:02:58]}  d5 {[%clk 0:02:59]} 2. d4 {[%clk 0:02:57]}  Nf6 {[%clk 0:02:58]} 3. c4 {[%clk 0:02:56]}  e6 {[%clk 0:02:57]} 4. g3 {[%clk 0:02:56]}  c6 {[%clk 0:02:57]} 5. Bg2 {[%clk 0:02:55]}  Be7 {[%clk 0:02:57]} 6. O-O {[%clk 0:02:54]}  O-O {[%clk 0:02:57]} 7. Nc3 {[%clk 0:02:52]}  Nbd7 {[%clk 0:02:57]} 8. Nd2 {[%clk 0:02:53]}  b6 {[%clk 0:02:54]} 9. e4 {[%clk 0:02:53]}  Bb7 {[%clk 0:02:53]} 10. e5 {[%clk 0:02:51]}  Ne8 {[%clk 0:02:51]} 11. Re1 {[%clk 0:02:51]}  Rc8 {[%clk 0:02:48]} 12. Nb3 {[%clk 0:02:42]}  Nb8 {[%clk 0:02:45]} 13. Qf3 {[%clk 0:02:27]}  dxc4 {[%clk 0:02:35]} 14. Nd2 {[%clk 0:02:23]}  Qxd4 {[%clk 0:02:32]} 15. Re4 {[%clk 0:01:58]}  Qd3 {[%clk 0:02:21]} 16. Rxc4 {[%clk 0:01:50]}  Qxf3 {[%clk 0:02:14]} 17. Bxf3 {[%clk 0:01:51]}  Nc7 {[%clk 0:01:49]} 18. Nde4 {[%clk 0:01:38]}  c5 {[%clk 0:01:40]} 19. Nd6 {[%clk 0:01:30]}  Bxf3 {[%clk 0:01:35]} 20. Nxc8 {[%clk 0:01:30]}  Rxc8 {[%clk 0:01:35]} 21. Be3 {[%clk 0:01:26]}  Nd5 {[%clk 0:01:22]} 22. Nb5 {[%clk 0:01:24]}  Nc6 {[%clk 0:01:00]} 23. Ra4 {[%clk 0:01:11]}  a5 {[%clk 0:00:50]} 24. a3 {[%clk 0:01:10]}  Be2 {[%clk 0:00:42]} 25. Nc3 {[%clk 0:01:09]}  Nxc3 {[%clk 0:00:42]} 26. bxc3 {[%clk 0:01:09]}  Nxe5 {[%clk 0:00:33]} 27. Rb1 {[%clk 0:01:06]}  Nd7 {[%clk 0:00:25]} 28. Rb2 {[%clk 0:01:02]}  Bd1 {[%clk 0:00:23]} 29. Rf4 {[%clk 0:00:59]}  Bg5 {[%clk 0:00:19]} 30. Re4 {[%clk 0:00:36]}  Bxe3 {[%clk 0:00:18]} 31. Rxe3 {[%clk 0:00:36]}  Nf6 {[%clk 0:00:15]} 32. Rd2 {[%clk 0:00:35]}  Ba4 {[%clk 0:00:13]} 33. Red3 {[%clk 0:00:35]}  h6 {[%clk 0:00:11]} 34. Rd6 {[%clk 0:00:35]}  b5 {[%clk 0:00:10]} 35. Ra6 {[%clk 0:00:35]}  Bb3 {[%clk 0:00:08]} 36. Rxa5 {[%clk 0:00:34]}  Bc4 {[%clk 0:00:09]} 37. Rd6 {[%clk 0:00:32]}  Nd5 {[%clk 0:00:09]} 38. Ra7 {[%clk 0:00:31]}  Rf8 {[%clk 0:00:07]} 39. Rc6 {[%clk 0:00:30]}  Nxc3 {[%clk 0:00:07]} 40. Rxc5 {[%clk 0:00:30]}  Nd5 {[%clk 0:00:07]} 41. a4 {[%clk 0:00:29]}  bxa4 {[%clk 0:00:02]} 42. Rxc4 {[%clk 0:00:28]}  a3 {[%clk 0:00:01]} 43. Rxa3 {[%clk 0:00:27]}  Nf6 {[%clk 0:00:02]} 44. Rc7 {[%clk 0:00:27]}  Nd5 {[%clk 0:00:03]} 45. Rb7 {[%clk 0:00:27]}  Nf6 {[%clk 0:00:03]} 46. Raa7 {[%clk 0:00:27]}  Nd5 {[%clk 0:00:04]} 47. Kg2 {[%clk 0:00:28]}  Nf6 {[%clk 0:00:05]} 48. h4 {[%clk 0:00:28]}  Nd5 {[%clk 0:00:06]} 49. Kf3 {[%clk 0:00:28]}  h5 {[%clk 0:00:05]} 50. Rb5 {[%clk 0:00:27]}  Nf6 {[%clk 0:00:06]} 51. Rg5 {[%clk 0:00:27]}  g6 {[%clk 0:00:07]} 52. Re5 {[%clk 0:00:20]}  Kg7 {[%clk 0:00:08]} 53. Rxe6 {[%clk 0:00:20]}  Nd5 {[%clk 0:00:08]} 54. Re5 {[%clk 0:00:19]}  Nf6 {[%clk 0:00:08]} 55. Ree7 {[%clk 0:00:18]}  Nd5 {[%clk 0:00:08]} 56. g4 {[%clk 0:00:17]}  hxg4+ {[%clk 0:00:07]} 57. Kxg4 {[%clk 0:00:17]}  Nf6+ {[%clk 0:00:08]} 58. Kg3 {[%clk 0:00:15]}  Nh7 {[%clk 0:00:09]} 59. Red7 {[%clk 0:00:15]}  Nf6 {[%clk 0:00:09]} 60. Rdc7 {[%clk 0:00:14]}  Nd5 {[%clk 0:00:09]} 61. Rcb7 {[%clk 0:00:14]}  Nf6 {[%clk 0:00:09]} 62. f4 {[%clk 0:00:14]}  Nh5+ {[%clk 0:00:09]} 63. Kg4 {[%clk 0:00:13]}  Nf6+ {[%clk 0:00:10]} 64. Kg5 {[%clk 0:00:14]}  Nh7+ {[%clk 0:00:11]} 65. Kg4 {[%clk 0:00:14]}  Nf6+ {[%clk 0:00:11]} 66. Kf3 {[%clk 0:00:15]}  Nh5 {[%clk 0:00:11]} 67. Re7 {[%clk 0:00:13]}  Nf6 {[%clk 0:00:11]} 68. f5 {[%clk 0:00:13]}  gxf5 {[%clk 0:00:11]} 69. Kf4 {[%clk 0:00:13]}  Nd5+ {[%clk 0:00:11]} 70. Kxf5 {[%clk 0:00:13]}  Nxe7+ {[%clk 0:00:11]} 71. Rxe7 {[%clk 0:00:13]}  Rh8 {[%clk 0:00:10]} 72. Kg5 {[%clk 0:00:13]}  Rh7 {[%clk 0:00:09]} 73. h5 {[%clk 0:00:13]}  Kf8 {[%clk 0:00:10]} 74. Re4 {[%clk 0:00:07]}  Kg7 {[%clk 0:00:09]} 75. Rf4 {[%clk 0:00:06]}  f6+ {[%clk 0:00:08]} 76. Kg4 {[%clk 0:00:03]}  Kf7 {[%clk 0:00:08]} 77. Rf5 {[%clk 0:00:03]}  Kg7 {[%clk 0:00:08]} 78. Ra5 {[%clk 0:00:04]}  Kh6 {[%clk 0:00:05]} 79. Ra6 {[%clk 0:00:03]}  Rf7 {[%clk 0:00:05]} 80. Ra5 {[%clk 0:00:03]}  f5+ {[%clk 0:00:05]} 81. Kh4 {[%clk 0:00:01]}  f4 {[%clk 0:00:05]} 0-1


[Site "https://www.chess.com"]